[Event "December 5 Late 2023"]
[Site "https://www.chess.com"]
[Date "2023.12.05"]
[Round "9"]
[White "Vanek, Tomas"]
[Black "Akhayan, Ruben"]
[Result "1-0"]
[Board "98"]
[TimeControl "180+1"]
[WhiteFideId "313459"]
[BlackFideId "204439"]
[WhiteElo "2187"]
[BlackElo "2373"]
[WhiteTeam "CZE"]
[BlackTeam "BEL"]
[WhiteClock "0:00:35"]
[BlackClock "0:00:09"]

1. e4 {[%clk 0:03:00]}  e5 {[%clk 0:02:59]} 2. Nf3 {[%clk 0:03:00]}  Nc6 {[%clk 0:02:59]} 3. Bb5 {[%clk 0:02:59]}  a6 {[%clk 0:02:59]} 4. Ba4 {[%clk 0:02:59]}  Nf6 {[%clk 0:02:59]} 5. O-O {[%clk 0:02:59]}  Be7 {[%clk 0:02:59]} 6. Re1 {[%clk 0:02:57]}  b5 {[%clk 0:03:00]} 7. Bb3 {[%clk 0:02:56]}  O-O {[%clk 0:03:00]} 8. c3 {[%clk 0:02:56]}  d5 {[%clk 0:03:00]} 9. d3 {[%clk 0:02:51]}  dxe4 {[%clk 0:02:56]} 10. dxe4 {[%clk 0:02:50]}  Qxd1 {[%clk 0:02:57]} 11. Bxd1 {[%clk 0:02:49]}  Nd7 {[%clk 0:02:53]} 12. Bc2 {[%clk 0:02:48]}  f6 {[%clk 0:02:49]} 13. a4 {[%clk 0:02:36]}  Bb7 {[%clk 0:02:48]} 14. Be3 {[%clk 0:02:29]}  Rfd8 {[%clk 0:02:44]} 15. Bb3+ {[%clk 0:02:19]}  Kf8 {[%clk 0:02:40]} 16. axb5 {[%clk 0:02:18]}  axb5 {[%clk 0:02:40]} 17. Rxa8 {[%clk 0:02:06]}  Bxa8 {[%clk 0:02:36]} 18. Rd1 {[%clk 0:02:02]}  Na5 {[%clk 0:02:15]} 19. Be6 {[%clk 0:02:01]}  Nb6 {[%clk 0:02:14]} 20. Rxd8+ {[%clk 0:01:59]}  Bxd8 {[%clk 0:02:15]} 21. Bxb6 {[%clk 0:01:50]}  cxb6 {[%clk 0:02:15]} 22. Bd5 {[%clk 0:01:47]}  Bxd5 {[%clk 0:02:08]} 23. exd5 {[%clk 0:01:47]}  Ke7 {[%clk 0:02:09]} 24. Nbd2 {[%clk 0:01:35]}  Kd6 {[%clk 0:02:07]} 25. Kf1 {[%clk 0:01:13]}  Kxd5 {[%clk 0:02:06]} 26. Ke2 {[%clk 0:01:13]}  Nc4 {[%clk 0:02:06]} 27. b3 {[%clk 0:01:12]}  Nxd2 {[%clk 0:02:04]} 28. Nxd2 {[%clk 0:01:11]}  f5 {[%clk 0:02:03]} 29. f3 {[%clk 0:01:11]}  Bg5 {[%clk 0:01:57]} 30. Nb1 {[%clk 0:01:11]}  Be7 {[%clk 0:01:54]} 31. Ke3 {[%clk 0:01:00]}  g6 {[%clk 0:01:51]} 32. g3 {[%clk 0:00:58]}  Bc5+ {[%clk 0:01:48]} 33. Ke2 {[%clk 0:00:57]}  Bg1 {[%clk 0:01:48]} 34. h3 {[%clk 0:00:56]}  h5 {[%clk 0:01:46]} 35. Na3 {[%clk 0:00:53]}  Kc5 {[%clk 0:01:34]} 36. b4+ {[%clk 0:00:52]}  Kc6 {[%clk 0:01:33]} 37. Nc2 {[%clk 0:00:51]}  g5 {[%clk 0:01:12]} 38. Kf1 {[%clk 0:00:49]}  Bc5 {[%clk 0:00:28]} 39. bxc5 {[%clk 0:00:47]}  Kxc5 {[%clk 0:00:22]} 40. Ke2 {[%clk 0:00:46]}  Kc4 {[%clk 0:00:21]} 41. Kd2 {[%clk 0:00:46]}  f4 {[%clk 0:00:16]} 42. g4 {[%clk 0:00:42]}  hxg4 {[%clk 0:00:15]} 43. hxg4 {[%clk 0:00:42]}  e4 {[%clk 0:00:14]} 44. fxe4 {[%clk 0:00:41]}  f3 {[%clk 0:00:15]} 45. Ne3+ {[%clk 0:00:36]}  Kc5 {[%clk 0:00:15]} 46. e5 {[%clk 0:00:35]}  f2 {[%clk 0:00:09]} 47. Ke2 {[%clk 0:00:35]} 1-0

[Event "December 5 Late 2023"]
[Site "https://www.chess.com"]
[Date "2023.12.05"]
[Round "9"]
[White "Jesusesmifuerza"]
[Black "Figorito, Nick"]
[Result "0-1"]
[Board "99"]
[TimeControl "180+1"]
[BlackFideId "30923689"]
[WhiteElo "2148"]
[BlackElo "2369"]
[BlackTeam "USA"]
[WhiteClock "0:00:00"]
[BlackClock "0:00:04"]

1. e4 {[%clk 0:02:55]}  e6 {[%clk 0:02:59]} 2. d3 {[%clk 0:02:55]}  d5 {[%clk 0:03:00]} 3. exd5 {[%clk 0:02:55]}  exd5 {[%clk 0:03:00]} 4. d4 {[%clk 0:02:56]}  Bd6 {[%clk 0:03:00]} 5. Nf3 {[%clk 0:02:57]}  Ne7 {[%clk 0:03:00]} 6. Be2 {[%clk 0:02:57]}  O-O {[%clk 0:03:01]} 7. O-O {[%clk 0:02:58]}  Bf5 {[%clk 0:03:01]} 8. c4 {[%clk 0:02:58]}  dxc4 {[%clk 0:03:01]} 9. Bxc4 {[%clk 0:02:59]}  c6 {[%clk 0:03:00]} 10. h3 {[%clk 0:02:59]}  Nd7 {[%clk 0:03:00]} 11. Re1 {[%clk 0:02:59]}  Nb6 {[%clk 0:03:00]} 12. Bb3 {[%clk 0:02:59]}  Nbd5 {[%clk 0:03:00]} 13. Nc3 {[%clk 0:02:59]}  Re8 {[%clk 0:02:58]} 14. Nxd5 {[%clk 0:02:55]}  Nxd5 {[%clk 0:02:58]} 15. Bxd5 {[%clk 0:02:54]}  cxd5 {[%clk 0:02:55]} 16. Bd2 {[%clk 0:02:53]}  Be4 {[%clk 0:02:50]} 17. Qb3 {[%clk 0:02:51]}  Qf6 {[%clk 0:02:32]} 18. Ng5 {[%clk 0:02:41]}  Qxd4 {[%clk 0:02:03]} 19. Nxe4 {[%clk 0:02:18]}  dxe4 {[%clk 0:01:58]} 20. Bc3 {[%clk 0:01:45]}  Qb6 {[%clk 0:01:51]} 21. Qd5 {[%clk 0:01:43]}  Rad8 {[%clk 0:01:46]} 22. Qg5 {[%clk 0:01:32]}  Bf8 {[%clk 0:01:34]} 23. Rad1 {[%clk 0:01:30]}  Rxd1 {[%clk 0:01:18]} 24. Rxd1 {[%clk 0:01:31]}  Qg6 {[%clk 0:01:17]} 25. Qb5 {[%clk 0:01:26]}  Qc6 {[%clk 0:01:03]} 26. Qxc6 {[%clk 0:01:15]}  bxc6 {[%clk 0:01:03]} 27. Rd7 {[%clk 0:01:15]}  Bc5 {[%clk 0:00:58]} 28. Rc7 {[%clk 0:01:13]}  e3 {[%clk 0:00:58]} 29. fxe3 {[%clk 0:01:09]}  Bxe3+ {[%clk 0:00:59]} 30. Kf1 {[%clk 0:01:09]}  h6 {[%clk 0:00:37]} 31. Rxc6 {[%clk 0:01:04]}  Bb6 {[%clk 0:00:34]} 32. Rd6 {[%clk 0:01:00]}  Re4 {[%clk 0:00:31]} 33. Rd3 {[%clk 0:00:57]}  Kh7 {[%clk 0:00:27]} 34. Rg3 {[%clk 0:00:54]}  Bd4 {[%clk 0:00:26]} 35. Bxd4 {[%clk 0:00:53]}  Rxd4 {[%clk 0:00:27]} 36. Re3 {[%clk 0:00:51]}  Rd2 {[%clk 0:00:25]} 37. Re2 {[%clk 0:00:51]}  Rxe2 {[%clk 0:00:23]} 38. Kxe2 {[%clk 0:00:52]}  Kg6 {[%clk 0:00:24]} 39. Kd3 {[%clk 0:00:48]}  Kf5 {[%clk 0:00:24]} 40. Ke3 {[%clk 0:00:29]}  Ke5 {[%clk 0:00:23]} 41. g3 {[%clk 0:00:25]}  f5 {[%clk 0:00:21]} 42. a3 {[%clk 0:00:25]}  g5 {[%clk 0:00:20]} 43. b3 {[%clk 0:00:25]}  Kd5 {[%clk 0:00:20]} 44. Kd3 {[%clk 0:00:25]}  Kc5 {[%clk 0:00:17]} 45. h4 {[%clk 0:00:21]}  Kd5 {[%clk 0:00:10]} 46. b4 {[%clk 0:00:15]}  Kc6 {[%clk 0:00:06]} 47. Kd4 {[%clk 0:00:13]}  Kb5 {[%clk 0:00:05]} 48. hxg5 {[%clk 0:00:12]}  hxg5 {[%clk 0:00:05]} 49. Ke5 {[%clk 0:00:12]}  f4 {[%clk 0:00:03]} 50. gxf4 {[%clk 0:00:00]}  gxf4 {[%clk 0:00:04]} 0-1

[Event "December 5 Late 2023"]
[Site "https://www.chess.com"]
[Date "2023.12.05"]
[Round "9"]
[White "Ghosh, Chanchal Kumer"]
[Black "Mesa Cruz, Juan Carlos"]
[Result "0-1"]
[Board "100"]
[TimeControl "180+1"]
[WhiteFideId "10201858"]
[BlackFideId "6423400"]
[WhiteElo "2111"]
[BlackElo "2369"]
[WhiteTeam "BAN"]
[BlackTeam "DOM"]
[WhiteClock "0:00:21"]
[BlackClock "0:00:05"]

1. e4 {[%clk 0:03:00]}  c5 {[%clk 0:02:52]} 2. Nf3 {[%clk 0:03:00]}  d6 {[%clk 0:02:43]} 3. d4 {[%clk 0:02:59]}  cxd4 {[%clk 0:02:16]} 4. Nxd4 {[%clk 0:02:56]}  Nf6 {[%clk 0:02:15]} 5. Nc3 {[%clk 0:02:54]}  a6 {[%clk 0:02:12]} 6. Be2 {[%clk 0:02:45]}  e5 {[%clk 0:02:09]} 7. Nb3 {[%clk 0:02:40]}  Be7 {[%clk 0:02:08]} 8. Be3 {[%clk 0:02:38]}  Be6 {[%clk 0:02:02]} 9. O-O {[%clk 0:02:37]}  Nbd7 {[%clk 0:02:01]} 10. f4 {[%clk 0:02:31]}  Qc7 {[%clk 0:01:57]} 11. f5 {[%clk 0:02:14]}  Bc4 {[%clk 0:01:56]} 12. a4 {[%clk 0:02:14]}  O-O {[%clk 0:01:45]} 13. a5 {[%clk 0:02:12]}  Rfd8 {[%clk 0:01:37]} 14. Qe1 {[%clk 0:01:59]}  Qc6 {[%clk 0:01:24]} 15. Nd2 {[%clk 0:01:53]}  Bxe2 {[%clk 0:01:23]} 16. Qxe2 {[%clk 0:01:54]}  d5 {[%clk 0:01:21]} 17. exd5 {[%clk 0:01:46]}  Nxd5 {[%clk 0:01:22]} 18. Nxd5 {[%clk 0:01:36]}  Qxd5 {[%clk 0:01:23]} 19. Nc4 {[%clk 0:01:30]}  Qe4 {[%clk 0:01:14]} 20. Rad1 {[%clk 0:01:28]}  Rac8 {[%clk 0:01:08]} 21. b3 {[%clk 0:01:26]}  Nf6 {[%clk 0:01:01]} 22. Nb6 {[%clk 0:01:21]}  Rxc2 {[%clk 0:00:57]} 23. Rxd8+ {[%clk 0:01:14]}  Bxd8 {[%clk 0:00:57]} 24. Qf3 {[%clk 0:01:12]}  Qxf3 {[%clk 0:00:34]} 25. Rxf3 {[%clk 0:01:12]}  Rc3 {[%clk 0:00:31]} 26. b4 {[%clk 0:01:08]}  Bxb6 {[%clk 0:00:30]} 27. Bxb6 {[%clk 0:01:05]}  Rxf3 {[%clk 0:00:30]} 28. gxf3 {[%clk 0:01:06]}  Nd5 {[%clk 0:00:24]} 29. Bc5 {[%clk 0:01:05]}  f6 {[%clk 0:00:23]} 30. Kf2 {[%clk 0:01:03]}  Kf7 {[%clk 0:00:24]} 31. Ke2 {[%clk 0:01:02]}  Ne7 {[%clk 0:00:24]} 32. Kd3 {[%clk 0:00:59]}  Nxf5 {[%clk 0:00:24]} 33. Ke4 {[%clk 0:00:55]}  Ke6 {[%clk 0:00:20]} 34. f4 {[%clk 0:00:47]}  Nd6+ {[%clk 0:00:17]} 35. Ke3 {[%clk 0:00:44]}  exf4+ {[%clk 0:00:13]} 36. Kxf4 {[%clk 0:00:43]}  h5 {[%clk 0:00:13]} 37. h4 {[%clk 0:00:42]}  Nf7 {[%clk 0:00:10]} 38. Bf8 {[%clk 0:00:38]}  g5+ {[%clk 0:00:09]} 39. hxg5 {[%clk 0:00:38]}  fxg5+ {[%clk 0:00:10]} 40. Ke4 {[%clk 0:00:38]}  Nd6+ {[%clk 0:00:10]} 41. Kd4 {[%clk 0:00:37]}  h4 {[%clk 0:00:09]} 42. Kc5 {[%clk 0:00:35]}  Nb5 {[%clk 0:00:06]} 43. Kb6 {[%clk 0:00:35]}  h3 {[%clk 0:00:06]} 44. Bd6 {[%clk 0:00:20]}  Kxd6 {[%clk 0:00:04]} 45. Kxb7 {[%clk 0:00:19]}  h2 {[%clk 0:00:04]} 46. Kxa6 {[%clk 0:00:20]}  h1=Q {[%clk 0:00:05]} 47. Kxb5 {[%clk 0:00:21]}  Qc6# {[%clk 0:00:05]} 0-1

[Event "December 5 Late 2023"]
[Site "https://www.chess.com"]
[Date "2023.12.05"]
[Round "9"]
[White "Mohammad, Fahim"]
[Black "Jing, Andrew"]
[Result "0-1"]
[Board "104"]
[TimeControl "180+1"]
[WhiteFideId "10206248"]
[BlackFideId "30984076"]
[WhiteElo "2306"]
[BlackElo "2211"]
[WhiteTeam "FRA"]
[BlackTeam "USA"]
[WhiteClock "0:00:05"]
[BlackClock "0:01:14"]

1. d4 {[%clk 0:03:00]}  Nf6 {[%clk 0:03:00]} 2. Nf3 {[%clk 0:02:55]}  g6 {[%clk 0:03:00]} 3. c4 {[%clk 0:02:54]}  Bg7 {[%clk 0:03:01]} 4. Nc3 {[%clk 0:02:55]}  O-O {[%clk 0:03:01]} 5. e4 {[%clk 0:02:55]}  d6 {[%clk 0:03:02]} 6. Be2 {[%clk 0:02:55]}  e5 {[%clk 0:03:03]} 7. Be3 {[%clk 0:02:54]}  Ng4 {[%clk 0:03:02]} 8. Bg5 {[%clk 0:02:48]}  f6 {[%clk 0:03:02]} 9. Bh4 {[%clk 0:02:44]}  Nc6 {[%clk 0:03:00]} 10. d5 {[%clk 0:02:33]}  Ne7 {[%clk 0:02:59]} 11. b4 {[%clk 0:02:31]}  g5 {[%clk 0:02:56]} 12. Bg3 {[%clk 0:02:30]}  a5 {[%clk 0:02:50]} 13. a3 {[%clk 0:02:26]}  Nh6 {[%clk 0:02:49]} 14. O-O {[%clk 0:02:21]}  Ng6 {[%clk 0:02:48]} 15. c5 {[%clk 0:02:19]}  f5 {[%clk 0:02:47]} 16. exf5 {[%clk 0:02:16]}  Nxf5 {[%clk 0:02:47]} 17. Nd2 {[%clk 0:02:16]}  Nd4 {[%clk 0:02:46]} 18. Nde4 {[%clk 0:02:14]}  h6 {[%clk 0:02:46]} 19. Bg4 {[%clk 0:02:11]}  Bf5 {[%clk 0:02:43]} 20. Bxf5 {[%clk 0:02:10]}  Nxf5 {[%clk 0:02:44]} 21. Rc1 {[%clk 0:02:07]}  Nd4 {[%clk 0:02:44]} 22. Re1 {[%clk 0:01:41]}  Nf4 {[%clk 0:02:42]} 23. Qg4 {[%clk 0:01:37]}  axb4 {[%clk 0:02:36]} 24. axb4 {[%clk 0:01:37]}  Ra3 {[%clk 0:02:37]} 25. h4 {[%clk 0:01:11]}  Bf6 {[%clk 0:01:54]} 26. hxg5 {[%clk 0:01:03]}  hxg5 {[%clk 0:01:55]} 27. Bxf4 {[%clk 0:00:55]}  exf4 {[%clk 0:01:52]} 28. cxd6 {[%clk 0:00:48]}  cxd6 {[%clk 0:01:52]} 29. Nxf6+ {[%clk 0:00:49]}  Qxf6 {[%clk 0:01:52]} 30. Ne4 {[%clk 0:00:50]}  Qf5 {[%clk 0:01:44]} 31. Qh5 {[%clk 0:00:35]}  f3 {[%clk 0:01:36]} 32. Rc7 {[%clk 0:00:11]}  Ne2+ {[%clk 0:01:31]} 33. Rxe2 {[%clk 0:00:10]}  fxe2 {[%clk 0:01:28]} 34. Qxe2 {[%clk 0:00:09]}  Ra1+ {[%clk 0:01:26]} 35. Kh2 {[%clk 0:00:08]}  Rf7 {[%clk 0:01:24]} 36. Rxf7 {[%clk 0:00:07]}  Qxf7 {[%clk 0:01:21]} 37. Qg4 {[%clk 0:00:07]}  Qf4+ {[%clk 0:01:19]} 38. Qxf4 {[%clk 0:00:07]}  gxf4 {[%clk 0:01:20]} 39. Nxd6 {[%clk 0:00:08]}  Rd1 {[%clk 0:01:18]} 40. Nxb7 {[%clk 0:00:08]}  Rxd5 {[%clk 0:01:18]} 41. Nc5 {[%clk 0:00:08]}  Rd4 {[%clk 0:01:18]} 42. Ne6 {[%clk 0:00:08]}  Rxb4 {[%clk 0:01:17]} 43. Kh3 {[%clk 0:00:08]}  Kf7 {[%clk 0:01:16]} 44. Ng5+ {[%clk 0:00:08]}  Kg6 {[%clk 0:01:16]} 45. Kg4 {[%clk 0:00:09]}  f3+ {[%clk 0:01:14]} 46. Kxf3 {[%clk 0:00:05]}  Kxg5 {[%clk 0:01:14]} 0-1

[Event "December 5 Late 2023"]
[Site "https://www.chess.com"]
[Date "2023.12.05"]
[Round "9"]
[White "Panuganti, Kireet"]
[Black "Korol, Dimitry"]
[Result "1/2-1/2"]
[Board "105"]
[TimeControl "180+1"]
[WhiteFideId "30903297"]
[BlackFideId "14108003"]
[WhiteElo "2041"]
[BlackElo "2292"]
[WhiteTeam "USA"]
[BlackTeam "UKR"]
[WhiteClock "0:00:03"]
[BlackClock "0:00:36"]

1. e4 {[%clk 0:03:00]}  c5 {[%clk 0:03:00]} 2. Nf3 {[%clk 0:02:56]}  d6 {[%clk 0:03:00]} 3. d4 {[%clk 0:02:52]}  cxd4 {[%clk 0:03:01]} 4. Nxd4 {[%clk 0:02:52]}  Nf6 {[%clk 0:03:01]} 5. Nc3 {[%clk 0:02:53]}  g6 {[%clk 0:03:02]} 6. Be3 {[%clk 0:02:52]}  Bg7 {[%clk 0:03:02]} 7. f3 {[%clk 0:02:52]}  O-O {[%clk 0:03:02]} 8. Qd2 {[%clk 0:02:53]}  Nc6 {[%clk 0:03:03]} 9. Bc4 {[%clk 0:02:53]}  Bd7 {[%clk 0:03:03]} 10. O-O-O {[%clk 0:02:53]}  Qa5 {[%clk 0:03:03]} 11. Nb3 {[%clk 0:02:49]}  Qb4 {[%clk 0:03:02]} 12. Be2 {[%clk 0:02:08]}  Na5 {[%clk 0:03:01]} 13. Nxa5 {[%clk 0:02:04]}  Qxa5 {[%clk 0:03:02]} 14. Kb1 {[%clk 0:01:52]}  Rfc8 {[%clk 0:03:01]} 15. g4 {[%clk 0:01:51]}  Be6 {[%clk 0:02:49]} 16. Nd5 {[%clk 0:01:36]}  Qxd2 {[%clk 0:02:43]} 17. Rxd2 {[%clk 0:01:36]}  Nxd5 {[%clk 0:02:14]} 18. exd5 {[%clk 0:01:37]}  Bd7 {[%clk 0:02:15]} 19. h4 {[%clk 0:01:25]}  b5 {[%clk 0:02:13]} 20. h5 {[%clk 0:01:14]}  a5 {[%clk 0:02:06]} 21. h6 {[%clk 0:01:12]}  Bh8 {[%clk 0:02:01]} 22. Re1 {[%clk 0:01:07]}  Kf8 {[%clk 0:01:57]} 23. Bd1 {[%clk 0:00:52]}  Rc7 {[%clk 0:01:36]} 24. c3 {[%clk 0:00:46]}  b4 {[%clk 0:01:02]} 25. cxb4 {[%clk 0:00:45]}  axb4 {[%clk 0:01:02]} 26. Bb3 {[%clk 0:00:45]}  Ba4 {[%clk 0:00:56]} 27. Bxa4 {[%clk 0:00:30]}  Rxa4 {[%clk 0:00:57]} 28. b3 {[%clk 0:00:17]}  Ra8 {[%clk 0:00:53]} 29. Bd4 {[%clk 0:00:13]}  Bf6 {[%clk 0:00:41]} 30. Bxf6 {[%clk 0:00:13]}  exf6 {[%clk 0:00:42]} 31. Rd4 {[%clk 0:00:12]}  Rc3 {[%clk 0:00:41]} 32. Rxb4 {[%clk 0:00:11]}  Rxf3 {[%clk 0:00:40]} 33. Rb7 {[%clk 0:00:11]}  Rf2 {[%clk 0:00:40]} 34. Ree7 {[%clk 0:00:11]}  Raxa2 {[%clk 0:00:37]} 35. Rxf7+ {[%clk 0:00:11]}  Ke8 {[%clk 0:00:37]} 36. Rfe7+ {[%clk 0:00:10]}  Kd8 {[%clk 0:00:37]} 37. Red7+ {[%clk 0:00:07]}  Kc8 {[%clk 0:00:36]} 38. Rdc7+ {[%clk 0:00:07]}  Kd8 {[%clk 0:00:36]} 39. Rd7+ {[%clk 0:00:02]}  Kc8 {[%clk 0:00:36]} 40. Rdc7+ {[%clk 0:00:02]}  Kd8 {[%clk 0:00:36]} 41. Rd7+ {[%clk 0:00:03]} 1/2-1/2

[Event "December 5 Late 2023"]
[Site "https://www.chess.com"]
[Date "2023.12.05"]
[Round "9"]
[White "Petersson, Kjell"]
[Black "Kujawski, Adam"]
[Result "0-1"]
[Board "108"]
[TimeControl "180+1"]
[WhiteFideId "1705148"]
[BlackFideId "1100920"]
[WhiteElo "2166"]
[BlackElo "2275"]
[WhiteTeam "SWE"]
[BlackTeam "POL"]
[WhiteClock "0:00:17"]
[BlackClock "0:00:22"]

1. d4 {[%clk 0:03:00]}  d5 {[%clk 0:02:47]} 2. Bf4 {[%clk 0:03:01]}  c5 {[%clk 0:02:46]} 3. e3 {[%clk 0:03:01]}  Nc6 {[%clk 0:02:45]} 4. c3 {[%clk 0:03:00]}  Nf6 {[%clk 0:02:43]} 5. Nd2 {[%clk 0:03:00]}  Qb6 {[%clk 0:02:43]} 6. Qb3 {[%clk 0:02:57]}  c4 {[%clk 0:02:42]} 7. Qc2 {[%clk 0:02:57]}  g6 {[%clk 0:02:42]} 8. e4 {[%clk 0:02:55]}  Nxe4 {[%clk 0:02:28]} 9. Nxe4 {[%clk 0:02:54]}  dxe4 {[%clk 0:02:05]} 10. Bxc4 {[%clk 0:02:54]}  Bf5 {[%clk 0:01:59]} 11. Be3 {[%clk 0:02:54]}  Qc7 {[%clk 0:01:37]} 12. Qb3 {[%clk 0:02:41]}  e6 {[%clk 0:01:29]} 13. d5 {[%clk 0:02:32]}  exd5 {[%clk 0:01:25]} 14. Bxd5 {[%clk 0:02:30]}  O-O-O {[%clk 0:01:13]} 15. c4 {[%clk 0:01:53]}  Bb4+ {[%clk 0:01:06]} 16. Kf1 {[%clk 0:01:50]}  Bd6 {[%clk 0:00:53]} 17. Ne2 {[%clk 0:01:48]}  h5 {[%clk 0:00:38]} 18. Bxc6 {[%clk 0:01:43]}  Qxc6 {[%clk 0:00:35]} 19. Bxa7 {[%clk 0:01:43]}  Bc5 {[%clk 0:00:31]} 20. Bxc5 {[%clk 0:01:40]}  Qxc5 {[%clk 0:00:32]} 21. Qc3 {[%clk 0:01:22]}  Rhe8 {[%clk 0:00:30]} 22. b4 {[%clk 0:01:18]}  Qc7 {[%clk 0:00:30]} 23. Ng3 {[%clk 0:00:57]}  Rd3 {[%clk 0:00:28]} 24. Qc2 {[%clk 0:00:56]}  Red8 {[%clk 0:00:25]} 25. Nxf5 {[%clk 0:00:54]}  gxf5 {[%clk 0:00:26]} 26. g3 {[%clk 0:00:52]}  e3 {[%clk 0:00:24]} 27. fxe3 {[%clk 0:00:47]}  Qc6 {[%clk 0:00:23]} 28. Rg1 {[%clk 0:00:34]}  Qf3+ {[%clk 0:00:23]} 29. Ke1 {[%clk 0:00:17]}  Rxe3+ {[%clk 0:00:22]} 0-1

[Event "December 5 Late 2023"]
[Site "https://www.chess.com"]
[Date "2023.12.05"]
[Round "9"]
[White "Keller, Peter"]
[Black "Cornelison, Paul"]
[Result "1-0"]
[Board "114"]
[TimeControl "180+1"]
[WhiteFideId "1272105"]
[BlackFideId "2004186"]
[WhiteElo "2178"]
[BlackElo "1922"]
[WhiteTeam "GER"]
[BlackTeam "USA"]
[WhiteClock "0:01:05"]
[BlackClock "0:01:25"]

1. d4 {[%clk 0:03:00]}  Nf6 {[%clk 0:02:59]} 2. Bf4 {[%clk 0:03:01]}  d6 {[%clk 0:02:59]} 3. e3 {[%clk 0:03:01]}  g6 {[%clk 0:03:00]} 4. h3 {[%clk 0:03:02]}  Bg7 {[%clk 0:03:01]} 5. Nf3 {[%clk 0:03:02]}  O-O {[%clk 0:03:02]} 6. Bh2 {[%clk 0:03:03]}  c6 {[%clk 0:03:02]} 7. Be2 {[%clk 0:03:03]}  Qa5+ {[%clk 0:03:02]} 8. c3 {[%clk 0:03:02]}  Nbd7 {[%clk 0:03:01]} 9. Nbd2 {[%clk 0:03:02]}  a6 {[%clk 0:03:00]} 10. a4 {[%clk 0:03:01]}  Qc7 {[%clk 0:02:56]} 11. a5 {[%clk 0:03:00]}  Ne8 {[%clk 0:02:56]} 12. O-O {[%clk 0:02:56]}  e5 {[%clk 0:02:56]} 13. dxe5 {[%clk 0:02:42]}  dxe5 {[%clk 0:02:54]} 14. Nc4 {[%clk 0:02:40]}  f5 {[%clk 0:02:51]} 15. Ng5 {[%clk 0:01:52]}  Nc5 {[%clk 0:02:49]} 16. Nb6 {[%clk 0:01:44]}  Rb8 {[%clk 0:02:37]} 17. b4 {[%clk 0:01:42]}  Ne6 {[%clk 0:02:37]} 18. Bc4 {[%clk 0:01:39]}  Rf6 {[%clk 0:02:04]} 19. Nxc8 {[%clk 0:01:32]}  Qxc8 {[%clk 0:02:03]} 20. Bxe5 {[%clk 0:01:27]}  Nc7 {[%clk 0:01:58]} 21. Bxc7 {[%clk 0:01:27]}  Qxc7 {[%clk 0:01:54]} 22. Nxe6 {[%clk 0:01:27]}  Rxe6 {[%clk 0:01:52]} 23. Bxe6+ {[%clk 0:01:27]}  Kh8 {[%clk 0:01:52]} 24. Qd7 {[%clk 0:01:27]}  Qxd7 {[%clk 0:01:50]} 25. Bxd7 {[%clk 0:01:28]}  Bxc3 {[%clk 0:01:50]} 26. Rab1 {[%clk 0:01:28]}  Rd8 {[%clk 0:01:49]} 27. Rfd1 {[%clk 0:01:28]}  Kg7 {[%clk 0:01:47]} 28. Be6 {[%clk 0:01:27]}  Rxd1+ {[%clk 0:01:46]} 29. Rxd1 {[%clk 0:01:28]}  Bxb4 {[%clk 0:01:47]} 30. Rd7+ {[%clk 0:01:28]}  Kf6 {[%clk 0:01:47]} 31. Bc4 {[%clk 0:01:28]}  Bxa5 {[%clk 0:01:46]} 32. Rxb7 {[%clk 0:01:28]}  c5 {[%clk 0:01:46]} 33. Bxa6 {[%clk 0:01:27]}  Bb4 {[%clk 0:01:46]} 34. Bc4 {[%clk 0:01:25]}  h5 {[%clk 0:01:46]} 35. f4 {[%clk 0:01:25]}  g5 {[%clk 0:01:46]} 36. Rb6+ {[%clk 0:01:23]}  Ke7 {[%clk 0:01:46]} 37. fxg5 {[%clk 0:01:23]}  Bd2 {[%clk 0:01:46]} 38. Kf2 {[%clk 0:01:23]}  f4 {[%clk 0:01:45]} 39. exf4 {[%clk 0:01:21]}  Bxf4 {[%clk 0:01:45]} 40. g6 {[%clk 0:01:22]}  Be5 {[%clk 0:01:43]} 41. Re6+ {[%clk 0:01:20]}  Kf8 {[%clk 0:01:42]} 42. Rxe5 {[%clk 0:01:21]}  Kg7 {[%clk 0:01:43]} 43. Rxh5 {[%clk 0:01:20]}  Kxg6 {[%clk 0:01:26]} 44. Rxc5 {[%clk 0:01:18]}  Kf6 {[%clk 0:01:25]} 45. Kf3 {[%clk 0:01:04]}  Kg7 {[%clk 0:01:25]} 46. Kg4 {[%clk 0:01:05]} 1-0

[Event "December 5 Late 2023"]
[Site "https://www.chess.com"]
[Date "2023.12.05"]
[Round "9"]
[White "th3d4rkness"]
[Black "Bazzano, Sebastian"]
[Result "1-0"]
[Board "115"]
[TimeControl "180+1"]
[BlackFideId "104566"]
[WhiteElo "2130"]
[BlackElo "2230"]
[BlackTeam "ARG"]
[WhiteClock "0:00:17"]
[BlackClock "0:00:00"]

1. e4 {[%clk 0:03:00]}  e6 {[%clk 0:02:59]} 2. d3 {[%clk 0:03:00]}  c5 {[%clk 0:02:59]} 3. Nd2 {[%clk 0:02:58]}  Nc6 {[%clk 0:02:59]} 4. Ngf3 {[%clk 0:02:58]}  g6 {[%clk 0:02:59]} 5. Be2 {[%clk 0:02:55]}  Bg7 {[%clk 0:02:59]} 6. O-O {[%clk 0:02:54]}  Nf6 {[%clk 0:03:00]} 7. Re1 {[%clk 0:02:49]}  O-O {[%clk 0:03:00]} 8. Bf1 {[%clk 0:02:49]}  d6 {[%clk 0:02:58]} 9. c3 {[%clk 0:02:49]}  e5 {[%clk 0:02:57]} 10. a4 {[%clk 0:02:46]}  Nh5 {[%clk 0:02:57]} 11. g3 {[%clk 0:02:44]}  f5 {[%clk 0:02:53]} 12. Nc4 {[%clk 0:02:40]}  f4 {[%clk 0:02:45]} 13. Bg2 {[%clk 0:02:31]}  Be6 {[%clk 0:02:34]} 14. Qc2 {[%clk 0:02:15]}  h6 {[%clk 0:02:17]} 15. b3 {[%clk 0:02:13]}  Qd7 {[%clk 0:02:09]} 16. Bb2 {[%clk 0:02:07]}  Bg4 {[%clk 0:02:06]} 17. Nh4 {[%clk 0:02:06]}  Kh7 {[%clk 0:01:59]} 18. d4 {[%clk 0:01:40]}  fxg3 {[%clk 0:01:53]} 19. hxg3 {[%clk 0:01:36]}  exd4 {[%clk 0:01:52]} 20. e5 {[%clk 0:01:30]}  Qf7 {[%clk 0:00:54]} 21. Nxd6 {[%clk 0:01:27]}  Qe6 {[%clk 0:00:54]} 22. Nxg6 {[%clk 0:01:13]}  Kg8 {[%clk 0:00:30]} 23. Nxf8 {[%clk 0:01:11]}  Rxf8 {[%clk 0:00:31]} 24. cxd4 {[%clk 0:01:09]}  Nxd4 {[%clk 0:00:26]} 25. Bxd4 {[%clk 0:01:08]}  cxd4 {[%clk 0:00:25]} 26. Qc5 {[%clk 0:01:01]}  b6 {[%clk 0:00:25]} 27. Qxd4 {[%clk 0:00:58]}  Kh8 {[%clk 0:00:24]} 28. Bd5 {[%clk 0:00:51]}  Qe7 {[%clk 0:00:20]} 29. Nc4 {[%clk 0:00:47]}  Be6 {[%clk 0:00:15]} 30. Bxe6 {[%clk 0:00:43]}  Qxe6 {[%clk 0:00:16]} 31. Rad1 {[%clk 0:00:42]}  Qh3 {[%clk 0:00:13]} 32. Qh4 {[%clk 0:00:37]}  Qf5 {[%clk 0:00:12]} 33. Re2 {[%clk 0:00:29]}  Qf3 {[%clk 0:00:07]} 34. Rde1 {[%clk 0:00:27]}  Rc8 {[%clk 0:00:02]} 35. e6 {[%clk 0:00:27]}  Bf6 {[%clk 0:00:00]} 36. Qh2 {[%clk 0:00:17]} 1-0